bitfinex/quotes_SOLUSD_20241113
["timestamp","ask_amount","ask_price","bid_price","bid_amount"]
[1731464163981,13.62608445,209.64,209.57,13.62608445]
[1731464164180,13.62608445,209.6,209.54,17.1831341]
[1731464164377,13.62608445,209.62,209.55,13.62608445]
[1731464164579,20.0,209.61,209.56,13.62608445]
[1731464164780,41.83023487,209.61,209.54,17.1831341]
[1731464164987,21.83023487,209.6,209.54,17.1831341]
[1731464165294,21.83023487,209.6,209.54,0.4800341]
[1731464165490,24.7709,209.61,209.54,22.31026897]
[1731464165491,46.60113487,209.61,209.54,22.31026897]
[1731464165811,21.83023487,209.6,209.54,0.4800341]
[1731464166012,21.83023487,209.58,209.54,0.4800341]
[1731464166208,21.83023487,209.57,209.54,0.4800341]
[1731464166514,21.83023487,209.58,209.54,0.4800341]
[1731464166681,21.83023487,209.55,209.54,0.4800341]
[1731464166883,41.95572487,209.55,209.54,0.4800341]
[1731464167412,46.72782487,209.55,209.54,0.4800341]
[1731464168201,41.83023487,209.55,209.54,0.4800341]
[1731464168795,20.0,209.55,209.54,0.4800341]
[1731464169099,21.83023487,209.58,209.54,0.4800341]
[1731464169280,20.0,209.57,209.54,0.4800341]
[1731464169484,20.0,209.56,209.54,0.4800341]
[1731464169987,41.83023487,209.57,209.54,0.4800341]
[1731464170303,41.83023487,209.55,209.54,0.4800341]
[1731464170806,20.0,209.55,209.54,0.4800341]
[1731464172389,41.83023487,209.55,209.54,0.4800341]
[1731464172894,41.95572487,209.55,209.54,0.4800341]
[1731464175410,82.17700887,209.55,209.54,0.4800341]
[1731464175586,134.00724374,209.55,209.39,27.4644]
[1731464175786,21.83023487,209.44,209.39,11.939]
[1731464175987,21.83023487,209.42,209.35,21.83023487]
[1731464176189,21.83023487,209.4,209.34,11.942]
[1731464176387,20.0,209.43,209.33,0.4800341]
[1731464176388,0.12549,209.42,209.33,0.4800341]
[1731464176600,21.83023487,209.37,209.33,0.4800341]
[1731464177484,21.83023487,209.35,209.33,0.4800341]
[1731464177684,21.83023487,209.34,209.33,0.4800341]
[1731464177888,41.95572487,209.34,209.33,0.4800341]
[1731464178297,20.0,209.34,209.33,0.4800341]
[1731464178593,0.12549,209.38,209.33,0.4800341]
[1731464179499,41.95572487,209.34,209.33,0.4800341]
[1731464181390,70.60950887,209.34,209.33,0.4800341]
[1731464181594,98.75654374,209.34,209.33,0.4800341]
[1731464181789,0.12549,209.29,209.17,16.7326]
[1731464182010,21.83023487,209.22,209.17,16.7326]
[1731464182213,23.776884,209.29,209.17,16.7326]
[1731464182214,21.83023487,209.21,209.17,16.7326]
[1731464182387,21.83023487,209.2,209.17,16.7326]
[1731464182716,21.83023487,209.19,209.17,11.9518]
[1731464183016,21.83023487,209.18,209.13,4.7817]
[1731464183312,20.0,209.19,209.13,38.56613487]
[1731464183712,21.83023487,209.18,209.13,16.7359]
[1731464184211,21.83023487,209.17,209.13,11.9542]
[1731464185616,0.12549,209.18,209.13,11.9542]
[1731464185617,21.83023487,209.19,209.13,16.7359]
[1731464185787,164.9787,209.27,209.13,16.7359]
[1731464185993,16.3327,209.21,209.12,0.4800341]
[1731464186193,0.1,209.17,208.96,21.5595]
[1731464186500,21.83023487,209.0,208.97,11.9634]
[1731464186797,0.12549,209.04,208.98,21.83023487]
[1731464186997,0.12549,209.04,208.97,11.9634]
[1731464187217,21.83023487,209.01,208.97,11.9634]
[1731464187402,0.1,209.09,208.97,11.9634]
[1731464187403,21.83023487,209.03,208.97,11.9634]
[1731464187707,21.83023487,209.0,208.97,11.9634]
[1731464187899,21.83023487,209.01,208.97,11.9634]
[1731464188321,21.83023487,209.03,208.97,11.9634]
[1731464188491,21.83023487,209.02,208.97,11.9634]
[1731464189408,21.83023487,209.02,208.89,15.0998]
[1731464189409,21.95572487,208.98,208.84,6.4597]
[1731464189630,21.83023487,208.93,208.89,11.9678]
[1731464189917,21.83023487,208.96,208.91,5.2666341]
[1731464190103,23.776884,209.07,208.91,17.2334341]
[1731464190301,0.12549,209.03,208.91,17.2334341]
[1731464190505,0.12549,209.01,208.91,17.2334341]
[1731464190700,0.12549,208.97,208.91,12.4468341]
[1731464191101,0.12549,208.95,208.91,0.4800341]
[1731464191297,21.83023487,208.92,208.91,0.4800341]
[1731464191938,21.95572487,208.92,208.91,0.4800341]
[1731464192216,21.83023487,208.92,208.91,0.4800341]
[1731464193525,21.83023487,208.94,208.91,0.4800341]
[1731464193903,21.83023487,208.92,208.91,0.4800341]
[1731464194102,0.2,208.85,208.73,11.9771]
[1731464194309,20.12549,208.91,208.7,1.29907218]
[1731464194310,0.1,208.82,208.7,0.4800341]
[1731464194517,21.83023487,208.72,208.7,0.4800341]
[1731464194727,21.83023487,208.76,208.7,5.2715341]
[1731464195304,21.83023487,208.74,208.7,5.2715341]
[1731464195511,21.83023487,208.72,208.7,0.4800341]
[1731464196025,21.83023487,208.71,208.7,0.0876509]
[1731464197130,21.83023487,208.73,208.7,0.0876509]
[1731464197425,21.83023487,208.73,208.71,4.7913]
[1731464198530,21.83023487,208.76,208.71,16.7696]
[1731464198718,21.83023487,208.74,208.71,16.7696]
[1731464198920,21.83023487,208.72,208.7,0.0876509]
[1731464199120,21.83023487,208.71,208.7,0.0876509]
[1731464200033,30.0,208.71,208.7,4.8791509]
[1731464201019,21.83023487,208.73,208.7,16.8580509]
[1731464202035,21.83023487,208.71,208.7,16.8580509]
[1731464202424,21.83023487,208.72,208.7,16.8580509]
[1731464202621,21.83023487,208.71,208.7,12.0665509]
[1731464203634,21.83023487,208.76,208.7,16.8580509]
[1731464203817,21.83023487,208.73,208.7,16.8580509]
[1731464204019,7.38440854,208.8,208.7,16.8580509]
[1731464204218,0.12549,208.79,208.7,16.8580509]
[1731464205027,21.83023487,208.74,208.7,16.8580509]
[1731464205322,21.83023487,208.75,208.7,16.8580509]
[1731464206218,21.83023487,208.76,208.7,16.8580509]
[1731464206745,21.83023487,208.77,208.7,38.68828577]
[1731464207147,21.83023487,208.76,208.7,16.8580509]
[1731464207324,21.83023487,208.71,208.7,16.8580509]
[1731464208037,43.66046974,208.71,208.7,0.0876509]
[1731464208218,63.66046974,208.71,208.7,0.0876509]
[1731464208627,63.66046974,208.71,208.65,12.4729878]
[1731464208628,20.0,208.7,208.65,0.4913878]
[1731464208935,21.83023487,208.66,208.65,0.4913878]
[1731464212239,21.83023487,208.68,208.65,0.4913878]
[1731464212448,21.83023487,208.69,208.65,17.2657878]
[1731464212633,21.83023487,208.67,208.65,17.2657878]
[1731464212833,21.83023487,208.68,208.65,17.2657878]
[1731464213545,21.83023487,208.66,208.65,0.4913878]
[1731464215056,21.83023487,208.67,208.65,0.4913878]
[1731464215848,21.83023487,208.7,208.65,17.2656878]
[1731464216341,21.83023487,208.71,208.65,17.2656878]
[1731464216645,21.83023487,208.72,208.65,39.09592267]
[1731464217522,21.83023487,208.71,208.65,39.09592267]
[1731464217847,41.83023487,208.66,208.6,0.12549]
[1731464218026,21.83023487,208.61,208.6,0.12549]
[1731464219437,21.83023487,208.64,208.6,0.12549]
[1731464219755,21.83023487,208.69,208.62,21.83023487]
[1731464219939,21.83023487,208.71,208.64,21.83023487]
[1731464220328,21.83023487,208.72,208.65,21.83023487]
[1731464220531,21.83023487,208.71,208.64,21.83023487]
[1731464220827,0.12549,208.68,208.62,38.60713487]
[1731464221342,0.12549,208.69,208.64,21.83023487]
[1731464221550,0.12549,208.69,208.63,21.83023487]
[1731464221744,0.12549,208.69,208.64,16.7752]
[1731464221951,21.83023487,208.7,208.64,16.7752]
[1731464222831,21.83023487,208.68,208.64,16.7752]
[1731464223144,21.95572487,208.69,208.64,11.9823]
[1731464223353,21.83023487,208.68,208.64,11.9823]
[1731464223554,0.12549,208.68,208.64,11.9823]
[1731464223731,21.83023487,208.69,208.64,11.9823]
[1731464224351,21.83023487,208.7,208.64,11.9823]
[1731464224539,21.83023487,208.75,208.68,21.83023487]
[1731464224742,21.83023487,208.75,208.64,11.9823]
[1731464224743,21.83023487,208.74,208.67,21.83023487]
[1731464225044,13.60483768,208.78,208.71,21.83023487]
[1731464225045,21.83023487,208.78,208.71,21.83023487]
[1731464225445,0.12549,208.8,208.64,11.9823]
[1731464225953,7.37393464,208.81,208.65,0.1]
[1731464226255,7.37393464,208.81,208.65,23.876884]
[1731464226459,21.83023487,208.8,208.73,21.83023487]
[1731464226753,7.37393464,208.81,208.67,0.1]
[1731464226754,0.12549,208.78,208.72,21.83023487]
[1731464226940,21.95572487,208.78,208.71,21.83023487]
[1731464227137,21.83023487,208.78,208.71,21.83023487]
[1731464227452,21.83023487,208.77,208.69,21.83023487]
[1731464227645,21.83023487,208.73,208.66,62.56623487]
[1731464227847,0.12549,208.74,208.68,21.83023487]
[1731464228360,21.95572487,208.74,208.69,11.9794]
[1731464228559,0.12549,208.74,208.69,11.9794]
[1731464228740,21.83023487,208.79,208.72,21.83023487]
[1731464228940,21.83023487,208.8,208.73,21.83023487]
[1731464229136,21.83023487,208.79,208.72,21.83023487]
[1731464229647,0.12549,208.78,208.72,21.83023487]
[1731464230363,0.12549,208.78,208.73,16.7679]
[1731464230664,21.95572487,208.74,208.69,16.7711]
[1731464230956,21.83023487,208.7,208.65,4.7925]
[1731464231153,0.12549,208.66,208.6,0.12549]
[1731464232350,21.83023487,208.61,208.6,0.12549]
[1731464232561,21.95572487,208.61,208.6,0.12549]
[1731464232939,0.12549,208.61,208.6,0.12549]
[1731464233261,21.83023487,208.63,208.6,0.12549]
[1731464233754,0.12549,208.62,208.6,0.12549]
[1731464234055,21.95572487,208.61,208.6,0.12549]
[1731464235647,41.95572487,208.61,208.6,0.12549]
[1731464237157,21.95572487,208.61,208.6,0.12549]
[1731464238041,63.78595974,208.61,208.6,0.12549]
[1731464238541,41.95572487,208.61,208.6,0.12549]
[1731464239265,21.95572487,208.61,208.6,0.12549]
[1731464240059,63.78595974,208.61,208.6,0.12549]
[1731464240351,87.66284374,208.61,208.6,9e-05]
[1731464240558,0.22549,208.59,208.55,0.12549]
[1731464240755,41.95572487,208.56,208.55,0.12549]
[1731464242547,46.75042487,208.56,208.55,0.12549]
[1731464244864,21.83023487,208.56,208.55,0.12549]
[1731464245367,21.95572487,208.56,208.55,0.12549]
[1731464246769,7.3838589,208.57,208.55,0.12549]
[1731464246948,21.83023487,208.61,208.55,0.12549]
[1731464247144,21.83023487,208.59,208.55,0.12549]
[1731464247350,0.12549,208.6,208.55,16.90789]
[1731464247566,21.83023487,208.56,208.55,16.90789]
[1731464247772,4.7952,208.54,208.51,0.12549]
[1731464248061,21.83023487,208.52,208.51,0.12549]
[1731464248264,41.83023487,208.52,208.51,0.12549]
[1731464248457,41.95572487,208.52,208.51,0.12549]
[1731464248660,63.78595974,208.52,208.51,0.12549]
[1731464249042,20.1,208.51,208.38,4.7988]
[1731464249253,21.83023487,208.44,208.38,4.7988]
[1731464249854,21.83023487,208.46,208.39,33.82663487]
[1731464250049,21.83023487,208.48,208.43,5.2890878]
[1731464250268,21.83023487,208.5,208.43,17.2834878]
[1731464250746,0.12549,208.49,208.43,17.2834878]
[1731464251469,21.95572487,208.48,208.43,17.2834878]
[1731464251676,0.12549,208.45,208.43,0.4913878]
[1731464252262,21.83023487,208.49,208.43,0.4913878]
[1731464252467,4.796,208.51,208.43,0.4913878]
[1731464252468,41.83023487,208.5,208.43,27.11922267]
[1731464252657,0.12549,208.49,208.43,5.2889878]
[1731464253153,21.95572487,208.49,208.43,5.2889878]
[1731464253367,0.12549,208.47,208.43,5.2889878]
[1731464254084,41.95572487,208.44,208.43,0.4913878]
[1731464254367,20.12549,208.43,208.32,12.0005]
[1731464254565,21.83023487,208.33,208.29,16.8032]
[1731464254956,27.10799788,208.43,208.29,16.8032]
[1731464254957,21.83023487,208.35,208.29,16.8032]
[1731464255156,21.83023487,208.37,208.29,38.63343487]
[1731464255369,27.00799788,208.43,208.29,38.63343487]
[1731464255370,21.83023487,208.35,208.29,12.0024]
[1731464255571,21.83023487,208.35,208.29,12.2757814]
[1731464256290,21.83023487,208.33,208.29,12.2757814]
[1731464256453,21.83023487,208.31,208.29,12.2757814]
[1731464256657,21.83023487,208.35,208.29,12.2757814]
[1731464257063,21.83023487,208.37,208.29,12.2757814]
[1731464257271,21.83023487,208.38,208.3,21.83023487]
[1731464257482,21.83023487,208.37,208.31,16.8018]
[1731464257969,21.83023487,208.39,208.32,21.83023487]
[1731464258349,21.83023487,208.47,208.38,21.83023487]
[1731464258553,21.83023487,208.47,208.4,21.83023487]
[1731464259473,21.83023487,208.45,208.38,16.7962]
[1731464259780,21.83023487,208.45,208.38,38.62643487]
[1731464260257,7.36701968,208.49,208.38,16.7962]
[1731464260258,21.83023487,208.44,208.38,16.7962]
[1731464260451,21.83023487,208.39,208.33,11.9996]
[1731464260654,21.83023487,208.36,208.33,11.9996]
[1731464260882,21.83023487,208.35,208.33,11.9996]
[1731464261054,21.83023487,208.37,208.33,11.9996]
[1731464261572,21.83023487,208.38,208.33,11.9996]
[1731464261956,21.83023487,208.39,208.33,11.9996]
[1731464262165,21.83023487,208.4,208.33,11.9996]
[1731464262555,21.83023487,208.39,208.33,11.9996]
[1731464262765,21.83023487,208.36,208.33,11.9996]
[1731464263380,21.83023487,208.35,208.33,11.9996]
[1731464263674,21.83023487,208.37,208.33,11.9996]
[1731464264075,21.83023487,208.38,208.33,11.9996]
[1731464264261,21.83023487,208.42,208.35,21.83023487]
[1731464264775,21.83023487,208.42,208.34,21.83023487]
[1731464265076,21.83023487,208.39,208.33,11.9996]
[1731464265371,0.12549,208.45,208.33,16.7996]
[1731464265372,21.83023487,208.4,208.33,16.7996]
[1731464265675,21.83023487,208.42,208.34,21.83023487]
[1731464265868,21.83023487,208.41,208.34,21.83023487]
[1731464266068,21.83023487,208.41,208.33,16.7996]
[1731464266266,21.83023487,208.42,208.34,21.83023487]
[1731464266475,21.83023487,208.42,208.35,4.7996]
[1731464267074,21.83023487,208.36,208.29,0.2733814]
[1731464267254,21.83023487,208.3,208.29,0.2733814]
[1731464268378,21.83023487,208.33,208.29,0.2733814]
[1731464268572,21.83023487,208.34,208.29,5.0742814]
[1731464268751,35.92231707,208.31,208.29,0.2733814]
[1731464268955,7.37029949,208.35,208.29,0.2733814]
[1731464269169,35.92231707,208.31,208.29,0.2733814]
[1731464269564,35.92231707,208.3,208.29,0.2733814]
[1731464269753,7.37029949,208.35,208.29,0.2733814]
[1731464269754,35.92231707,208.32,208.29,0.2733814]
[1731464270153,35.92231707,208.3,208.29,0.2733814]
[1731464270353,35.92231707,208.31,208.29,0.2733814]
[1731464270557,35.92231707,208.32,208.29,0.2733814]
[1731464270776,35.92231707,208.33,208.29,0.2733814]
[1731464271982,35.92231707,208.35,208.29,17.0766814]
[1731464272186,23.39780944,208.43,208.29,17.0766814]
[1731464272187,35.92231707,208.38,208.31,35.92231707]
[1731464272365,35.92231707,208.37,208.3,35.92231707]
[1731464272566,35.92231707,208.37,208.31,16.8018]
[1731464273080,35.92231707,208.44,208.36,35.92231707]
[1731464273381,35.92231707,208.44,208.37,35.92231707]
[1731464273563,0.12549,208.45,208.35,35.92231707]
[1731464273564,35.92231707,208.42,208.35,35.92231707]
[1731464273759,35.92231707,208.41,208.34,35.92231707]
[1731464274873,35.92231707,208.42,208.35,47.92131707]
[1731464275681,35.92231707,208.44,208.37,35.92231707]
[1731464275882,0.12549,208.45,208.35,11.999]
[1731464275883,36.04780707,208.45,208.38,35.92231707]
[1731464276582,35.92231707,208.43,208.36,35.92231707]
[1731464276977,35.92231707,208.44,208.37,35.92231707]
[1731464277767,0.12549,208.45,208.39,35.92231707]
[1731464279778,0.12549,208.45,208.4,16.7945]
[1731464280175,35.92231707,208.44,208.4,16.7945]
[1731464280379,0.12549,208.45,208.4,16.7945]
[1731464281092,0.12549,208.45,208.4,52.71681707]
[1731464281293,0.12549,208.45,208.42,35.92231707]
[1731464281471,0.12549,208.45,208.41,35.92231707]
[1731464281666,0.12549,208.45,208.4,11.9961]
[1731464281667,35.92231707,208.44,208.4,11.9961]
[1731464281867,4.92279,208.45,208.26,0.1]
[1731464282169,16.91599,208.45,208.31,4.8004]
[1731464282569,0.12549,208.43,208.31,4.8004]
[1731464282870,26.4718,208.44,208.31,4.8004]
[1731464283195,35.92231707,208.35,208.31,16.8017]
[1731464283894,35.92231707,208.36,208.31,16.8017]
[1731464284189,35.92231707,208.33,208.29,0.2733814]
[1731464284383,35.92231707,208.35,208.29,5.0742814]
[1731464284897,35.92231707,208.38,208.3,35.92231707]
[1731464285189,35.92231707,208.39,208.32,35.92231707]
[1731464285375,35.92231707,208.38,208.31,35.92231707]
[1731464285581,35.92231707,208.34,208.29,17.0766814]
[1731464286385,35.92231707,208.33,208.29,17.0766814]
[1731464286586,35.92231707,208.34,208.29,17.0766814]
[1731464286789,35.92231707,208.32,208.29,0.2733814]
[1731464287191,4.7998,208.34,208.29,0.2733814]
[1731464287498,11.9972,208.39,208.29,0.2733814]
[1731464287499,35.92231707,208.32,208.29,0.2733814]
[1731464287700,35.92231707,208.3,208.29,0.2733814]
[1731464287996,20.0,208.38,208.29,0.2733814]
[1731464287997,35.92231707,208.33,208.29,0.2733814]
[1731464288185,35.92231707,208.31,208.29,0.2733814]
[1731464289075,35.92231707,208.32,208.29,0.2733814]
[1731464289287,35.92231707,208.36,208.3,16.8026]
[1731464289489,35.92231707,208.31,208.29,0.2733814]
[1731464289988,4.799,208.38,208.29,0.2733814]
[1731464290498,35.92231707,208.31,208.29,0.2733814]
[1731464290698,35.92231707,208.3,208.29,0.2733814]
[1731464290877,42.11745343,208.3,208.29,0.2733814]
[1731464291390,46.91815343,208.3,208.29,0.2733814]
[1731464291776,69.03560686,208.3,208.29,0.2733814]
[1731464292693,20.22549,208.29,208.15,12.01]
[1731464292894,22.11745343,208.18,208.12,5.2742554]
[1731464293076,0.1,208.28,208.12,39.40400883]
[1731464293279,22.11745343,208.22,208.15,16.8147]
[1731464293891,22.11745343,208.26,208.19,22.11745343]
[1731464294403,22.11745343,208.25,208.18,22.11745343]
[1731464295102,22.11745343,208.24,208.17,22.11745343]
[1731464295899,22.11745343,208.22,208.15,34.12795343]
[1731464296085,22.11745343,208.21,208.15,12.0105]
[1731464296681,4.8017,208.26,208.12,27.39180883]
[1731464296682,22.11745343,208.19,208.12,27.39180883]
[1731464296990,22.11745343,208.23,208.16,22.11745343]
[1731464297187,22.11745343,208.26,208.18,22.11745343]
[1731464297387,22.11745343,208.24,208.17,22.11745343]
[1731464298303,22.11745343,208.23,208.16,22.11745343]
[1731464298999,22.11745343,208.24,208.17,22.11745343]
[1731464299199,4.8009,208.29,208.14,16.8155]
[1731464299200,22.11745343,208.2,208.14,16.8155]
[1731464299412,22.11745343,208.19,208.14,12.0111]
[1731464299602,22.11745343,208.18,208.14,12.0111]
[1731464299797,22.11745343,208.21,208.14,34.12855343]
[1731464300198,22.11745343,208.21,208.13,4.8046]
[1731464300199,20.22549,208.28,208.12,0.4695554]
[1731464300388,22.11745343,208.13,208.12,0.4695554]
[1731464300587,22.11745343,208.14,208.12,0.4695554]
[1731464300791,22.11745343,208.15,208.12,0.4695554]
[1731464301002,22.11745343,208.22,208.12,5.2742554]
[1731464301203,15.3577,208.26,208.16,22.11745343]
[1731464301204,22.11745343,208.23,208.16,22.11745343]
[1731464301399,26.91935343,208.25,208.17,22.11745343]
[1731464301697,4.8019,208.25,208.12,17.2865554]
[1731464302000,22.11745343,208.24,208.17,22.11745343]
[1731464302202,4.8019,208.25,208.16,22.11745343]
[1731464302430,22.11745343,208.22,208.15,22.11745343]
[1731464304213,7.35947292,208.24,208.19,22.11745343]
[1731464304614,29.47692635,208.24,208.17,22.11745343]
[1731464304913,29.47692635,208.24,208.12,0.4695554]
[1731464304914,0.22549,208.23,208.12,0.4695554]
[1731464305123,12.16177292,208.24,208.12,0.4695554]
[1731464305307,22.11745343,208.18,208.12,5.2741554]
[1731464305850,22.11745343,208.18,208.12,0.4695554]
[1731464306050,22.11745343,208.17,208.12,0.4695554]
[1731464306224,4.8032,208.2,208.12,0.4695554]
[1731464306225,22.11745343,208.15,208.12,0.4695554]
[1731464306429,22.11745343,208.17,208.12,0.4695554]
[1731464307134,22.11745343,208.16,208.12,0.4695554]
[1731464307850,22.11745343,208.15,208.12,0.4695554]
[1731464308042,22.11745343,208.17,208.12,0.4695554]
[1731464308838,22.11745343,208.15,208.12,0.4695554]
[1731464309247,22.11745343,208.16,208.12,0.4695554]
[1731464309748,22.11745343,208.14,208.12,0.4695554]
[1731464309939,22.11745343,208.15,208.12,0.4695554]
[1731464310248,22.11745343,208.17,208.12,0.4695554]
[1731464310435,22.11745343,208.18,208.12,0.4695554]
[1731464310949,22.11745343,208.17,208.12,0.4695554]
[1731464312732,22.11745343,208.14,208.12,0.4695554]
[1731464313227,22.11745343,208.15,208.12,0.4695554]
[1731464313424,22.11745343,208.13,208.12,0.4695554]
[1731464313651,22.11745343,208.14,208.12,0.4695554]
[1731464314030,22.11745343,208.13,208.12,0.4695554]
[1731464314435,22.11745343,208.16,208.12,0.4695554]
[1731464316552,22.11745343,208.15,208.12,0.4695554]
[1731464316752,22.11745343,208.21,208.14,22.11745343]
[1731464316963,22.11745343,208.22,208.16,22.11745343]
[1731464317243,6.2756,208.27,208.14,22.11745343]
[1731464317244,22.11745343,208.21,208.14,22.11745343]
[1731464317450,7.35961555,208.25,208.17,22.11745343]
[1731464317631,7.35961555,208.25,208.18,22.11745343]
[1731464317843,22.11745343,208.23,208.16,22.11745343]
[1731464318044,22.11745343,208.21,208.15,37.62545343]
[1731464318238,22.11745343,208.19,208.12,39.40400883]
[1731464318559,22.11745343,208.16,208.12,12.4818554]
[1731464318725,22.11745343,208.16,208.12,17.2867554]
[1731464318927,22.11745343,208.21,208.14,22.11745343]
[1731464319331,4.8021,208.24,208.12,12.4818554]
[1731464319542,4.8021,208.24,208.12,17.2867554]
[1731464319938,7.35961555,208.25,208.12,17.2867554]
[1731464320456,22.11745343,208.22,208.16,4.8039]
[1731464320753,22.11745343,208.22,208.16,16.8138]
[1731464320959,22.11745343,208.27,208.2,22.11745343]
[1731464321255,22.11745343,208.29,208.23,22.11745343]
[1731464321452,7.09254427,208.38,208.21,15.508]
[1731464321453,7.36422312,208.32,208.22,23.876884]
[1731464321659,7.09254427,208.38,208.22,23.876884]
[1731464321660,6.2756,208.38,208.22,23.876884]
[1731464322158,7.36166788,208.39,208.24,0.2]
[1731464322456,22.11745343,208.4,208.33,22.11745343]
[1731464322635,22.11745343,208.41,208.35,22.11745343]
[1731464322838,22.11745343,208.43,208.33,0.1]
[1731464323031,22.11745343,208.4,208.33,22.21745343]
[1731464323238,22.11745343,208.41,208.34,22.11745343]
[1731464323443,22.11745343,208.4,208.33,22.21745343]
[1731464323857,22.11745343,208.44,208.37,22.11745343]
[1731464324051,0.12549,208.45,208.39,22.11745343]
[1731464324360,22.24294343,208.45,208.38,22.11745343]
[1731464324537,22.24294343,208.45,208.38,34.11445343]
[1731464325159,22.11745343,208.41,208.38,11.997]
[1731464325665,4.92289,208.45,208.38,11.997]
[1731464325666,22.24294343,208.45,208.38,34.11445343]
[1731464325963,0.12549,208.45,208.41,22.11745343]
[1731464326143,22.24294343,208.45,208.38,34.11445343]
[1731464326458,0.12549,208.45,208.38,16.7959]
[1731464326643,0.12549,208.45,208.39,22.11745343]
[1731464327760,22.11745343,208.44,208.38,16.7959]
[1731464328148,22.11745343,208.42,208.38,16.7959]
[1731464328346,22.11745343,208.43,208.38,16.7959]
[1731464328571,22.11745343,208.39,208.25,0.1]
[1731464328863,0.12549,208.45,208.32,12.0004]
[1731464328864,22.11745343,208.36,208.32,12.0004]
[1731464329038,22.11745343,208.37,208.32,12.0004]
[1731464329242,0.12549,208.45,208.32,12.0004]
[1731464329640,0.12549,208.45,208.34,0.1]
[1731464330046,0.12549,208.45,208.35,6.0799]
[1731464330256,0.12549,208.45,208.38,0.1]
[1731464330442,22.24294343,208.45,208.35,6.0799]
[1731464330641,22.24294343,208.45,208.38,38.91365343]
[1731464331162,22.24294343,208.45,208.35,6.0799]
[1731464331163,22.11745343,208.42,208.35,28.19735343]
[1731464331364,22.11745343,208.43,208.36,22.11745343]
[1731464331554,22.24294343,208.45,208.37,22.11745343]
[1731464332081,22.11745343,208.44,208.37,22.11745343]
[1731464332266,22.24294343,208.45,208.38,22.11745343]
[1731464332566,22.11745343,208.44,208.37,22.11745343]
[1731464332760,22.11745343,208.44,208.38,16.7962]
[1731464334370,22.11745343,208.42,208.38,11.9973]
[1731464334869,22.11745343,208.4,208.36,4.7993]
[1731464335047,22.11745343,208.42,208.36,16.7977]
[1731464335568,22.11745343,208.44,208.37,22.11745343]
[1731464335746,22.24294343,208.45,208.38,22.11745343]
[1731464335949,0.12549,208.45,208.41,22.11745343]
[1731464336563,0.12549,208.45,208.36,40.8946]
[1731464336564,0.12549,208.45,208.42,22.11745343]
[1731464336868,0.12549,208.45,208.43,16.7921]
[1731464337653,22.24294343,208.45,208.38,34.11415343]
[1731464337949,22.24294343,208.45,208.35,44.99585343]
[1731464337950,22.11745343,208.42,208.35,44.99585343]
[1731464338161,22.11745343,208.41,208.35,22.8784]
[1731464338361,0.12549,208.45,208.36,22.11745343]
[1731464338568,22.11745343,208.43,208.36,22.11745343]
[1731464338758,0.12549,208.45,208.39,22.11745343]
[1731464339077,22.11745343,208.43,208.37,4.799]
[1731464339369,22.11745343,208.42,208.37,4.799]
[1731464339762,22.11745343,208.43,208.37,4.799]
[1731464340360,22.11745343,208.42,208.37,4.799]
[1731464340870,22.24294343,208.45,208.38,22.11745343]
[1731464341374,22.24294343,208.45,208.39,22.11745343]
[1731464341764,22.24294343,208.45,208.38,22.11745343]
[1731464342158,22.11745343,208.44,208.37,26.91645343]
[1731464342352,22.11745343,208.44,208.37,38.91425343]
[1731464343065,22.24294343,208.45,208.38,22.11745343]
[1731464343485,22.24294343,208.45,208.39,4.7986]
[1731464343983,22.11745343,208.44,208.39,16.7953]
[1731464344477,22.24294343,208.45,208.39,16.7953]
[1731464344779,0.12549,208.45,208.39,38.91275343]
[1731464344953,0.12549,208.45,208.41,22.11745343]
[1731464345155,0.12549,208.45,208.39,16.7953]
[1731464345156,0.12549,208.45,208.43,22.11745343]
[1731464345467,0.12549,208.45,208.44,4.7975]
[1731464345770,22.24294343,208.45,208.37,22.11745343]
[1731464346074,22.11745343,208.44,208.39,11.9966]
[1731464346259,22.11745343,208.43,208.39,11.9966]
[1731464346764,13.80187074,208.41,208.39,11.9966]
[1731464347653,13.80187074,208.42,208.39,11.9966]
[1731464347975,13.80187074,208.43,208.39,11.9966]
[1731464348670,13.92736074,208.45,208.39,11.9966]
[1731464348876,13.80187074,208.43,208.39,11.9966]
[1731464349173,13.80187074,208.4,208.29,16.6494]
[1731464349365,13.80187074,208.32,208.25,30.60857074]
[1731464349874,13.80187074,208.31,208.25,16.8067]
[1731464350374,13.80187074,208.3,208.25,16.8067]
[1731464350767,22.10465441,208.31,208.25,16.8067]
[1731464351261,22.20465441,208.4,208.25,38.91135441]
[1731464351262,22.10465441,208.32,208.25,38.91135441]
[1731464351580,22.10465441,208.37,208.3,22.10465441]
[1731464351771,22.10465441,208.39,208.31,22.10465441]